bitfinex-derivatives/quotes_BTCF0:USTF0_20250501
["timestamp","ask_amount","ask_price","bid_price","bid_amount"]
[1746104696913,0.03971315,96327.0,96326.0,0.2075971]
[1746104697115,0.03971315,96327.0,96326.0,0.3295971]
[1746104697425,0.3608,96358.0,96335.0,0.2075777]
[1746104697611,0.3608,96358.0,96339.0,0.207569]
[1746104697612,7.291e-05,96343.0,96339.0,0.207569]
[1746104698017,0.038,96357.0,96339.0,0.31138582]
[1746104698318,0.0396,96351.0,96350.0,0.1]
[1746104699320,0.0396,96351.0,96341.0,0.1869778]
[1746104699514,0.3608,96346.0,96330.0,0.1869778]
[1746104699715,0.0518895,96344.0,96338.0,0.1]
[1746104699918,0.006,96340.0,96330.0,0.1869778]
[1746104700221,0.3608,96337.0,96333.0,0.1]
[1746104700623,0.0762,96336.0,96333.0,0.1]
[1746104700810,0.2837759,96336.0,96333.0,0.1]
[1746104701014,0.0399,96335.0,96333.0,0.1]
[1746104701210,0.2075827,96333.0,96330.0,0.001]
[1746104701425,0.0762,96334.0,96330.0,0.101]
[1746104701824,0.0518955,96333.0,96330.0,0.101]
[1746104702017,0.0762,96334.0,96311.0,0.7766]
[1746104702325,0.3608,96326.0,96323.0,0.1]
[1746104702521,0.0767,96325.0,96323.0,0.2]
[1746104702720,0.1166,96325.0,96323.0,0.2]
[1746104703124,0.2386,96325.0,96323.0,0.21645752]
[1746104704028,0.2396,96325.0,96323.0,0.21645752]
[1746104704220,0.1176,96325.0,96323.0,0.21645752]
[1746104704719,0.1176,96325.0,96323.0,0.21745752]
[1746104705221,0.0795,96325.0,96323.0,0.11745752]
[1746104705426,0.0795,96325.0,96324.0,0.2855014]
[1746104705626,0.0795,96325.0,96324.0,0.0779]
[1746104705925,0.07954,96325.0,96324.0,0.0779]
[1746104707219,0.07954,96325.0,96324.0,0.0789]
[1746104708627,0.07954,96325.0,96324.0,0.001]
[1746104709222,0.07954,96325.0,96324.0,0.0391]
[1746104710428,0.07954,96325.0,96324.0,0.1]
[1746104715326,0.066573,96325.0,96324.0,0.1]
[1746104716333,0.066573,96325.0,96324.0,0.1367]
[1746104717540,0.066573,96325.0,96310.0,0.1869778]
[1746104717846,0.066573,96325.0,96305.0,0.00103836]
[1746104717847,0.5684143,96318.0,96305.0,0.00103836]
[1746104718037,0.3608,96318.0,96307.0,0.1]
[1746104718240,0.2076309,96311.0,96307.0,0.1]
[1746104718450,0.3608,96308.0,96307.0,0.1]
[1746104718846,0.3598,96308.0,96307.0,0.1]
[1746104719042,0.35991724,96308.0,96307.0,0.1]
[1746104719241,0.48191724,96308.0,96307.0,0.1]
[1746104719942,0.47991724,96308.0,96307.0,0.1]
[1746104720143,0.35791724,96308.0,96307.0,0.307638]
[1746104720347,0.35795724,96308.0,96307.0,0.307638]
[1746104720647,0.35795724,96308.0,96307.0,0.344038]
[1746104721043,0.39605724,96308.0,96307.0,0.344038]
[1746104721248,0.39605724,96308.0,96307.0,0.420638]
[1746104721549,0.39605724,96308.0,96307.0,0.421638]
[1746104721847,0.39605724,96308.0,96307.0,0.422638]
[1746104722349,0.0636,96324.0,96317.0,0.0519039]
[1746104722548,7.291e-05,96322.0,96318.0,0.113]
[1746104722850,7.291e-05,96322.0,96318.0,0.213]
[1746104723943,0.03657291,96322.0,96318.0,0.213]
[1746104724342,0.0371,96321.0,96318.0,0.213]
[1746104724848,0.0365,96320.0,96319.0,0.2076121]
[1746104725037,0.0365,96320.0,96319.0,0.2817121]
[1746104725754,0.0736,96320.0,96319.0,0.2817121]
[1746104726046,0.0736,96320.0,96319.0,0.1]
[1746104726244,0.111,96320.0,96319.0,0.1]
[1746104727047,0.0736,96320.0,96319.0,0.1]
[1746104727850,0.0746,96320.0,96319.0,0.1]
[1746104728038,0.0746,96320.0,96319.0,0.138]
[1746104729144,0.0746,96320.0,96319.0,0.1]
[1746104730144,0.0736,96320.0,96319.0,0.1]
[1746104730345,0.0736,96320.0,96319.0,0.1367]
[1746104731154,0.0746,96320.0,96319.0,0.1367]
[1746104731754,0.0746,96320.0,96319.0,0.3443121]
[1746104731955,0.0375,96320.0,96319.0,0.3827121]
[1746104732152,0.0375,96320.0,96319.0,0.1751]
[1746104732351,0.0736,96320.0,96319.0,0.1751]
[1746104734164,0.0375,96320.0,96319.0,0.3827121]
[1746104734455,0.3608,96348.0,96337.0,0.2075734]
[1746104734661,0.0399,96335.0,96334.0,0.2075798]
[1746104734960,0.3608,96348.0,96339.0,0.207569]
[1746104735552,5.401e-05,96341.0,96339.0,0.207569]
[1746104735755,0.3608,96348.0,96339.0,0.207569]
[1746104735954,0.00154,96340.0,96339.0,0.207569]
[1746104736256,5.401e-05,96345.0,96344.0,0.3075583]
[1746104736446,0.036,96347.0,96346.0,0.207554]
[1746104737544,0.03604,96347.0,96346.0,0.207554]
[1746104737750,0.03804,96347.0,96346.0,0.207554]
[1746104738751,0.03804,96347.0,96346.0,0.31134604]
[1746104738954,0.038,96347.0,96346.0,0.31134604]
[1746104739249,0.00204,96347.0,96346.0,0.41134604]
[1746104739454,0.00804,96347.0,96346.0,0.41926018]
[1746104740045,0.00804,96347.0,96346.0,0.54126018]
[1746104740250,0.00285465,96347.0,96346.0,0.54126018]
[1746104740659,0.0364,96353.0,96352.0,0.207541]
[1746104740859,0.0364,96353.0,96352.0,0.42266099]
[1746104741260,0.0364,96353.0,96352.0,0.64845303]
[1746104741763,0.03644,96353.0,96352.0,0.64845303]
[1746104743262,0.04144,96353.0,96352.0,0.52645303]
[1746104746070,0.00504,96353.0,96352.0,0.52645303]
[1746104746254,4e-05,96353.0,96352.0,0.52645303]
[1746104746563,0.00404,96353.0,96352.0,0.52645303]
[1746104746862,4e-05,96353.0,96352.0,0.52645303]
[1746104747058,0.00204,96353.0,96352.0,0.52645303]
[1746104747263,0.00204,96353.0,96352.0,0.64845303]
[1746104748155,0.00204,96353.0,96352.0,0.52645303]
[1746104750964,0.00204,96353.0,96352.0,0.88725303]
[1746104751663,0.03725401,96362.0,96361.0,0.2075217]
[1746104751858,0.03725401,96362.0,96361.0,0.3075217]
[1746104753067,0.04125401,96362.0,96361.0,0.3075217]
[1746104753961,0.04125401,96362.0,96361.0,0.3456217]
[1746104754965,0.004,96362.0,96361.0,0.54939758]
[1746104755167,0.001,96366.0,96365.0,0.207513]
[1746104755756,0.001,96366.0,96365.0,0.31128888]
[1746104755961,0.001,96366.0,96365.0,0.38758888]
[1746104756659,0.004,96366.0,96365.0,0.38758888]
[1746104758267,0.0403,96370.0,96366.0,0.0518772]
[1746104758467,0.0403,96370.0,96368.0,0.3075048]
[1746104758662,0.0389,96369.0,96368.0,0.1]
[1746104759263,0.1609,96369.0,96368.0,0.20377157]
[1746104759466,0.1609,96369.0,96368.0,0.41127817]
[1746104762765,0.1609,96369.0,96368.0,0.20477157]
[1746104763875,0.1609,96369.0,96368.0,0.41227817]
[1746104765174,0.0389,96369.0,96368.0,0.41227817]
[1746104766170,0.1609,96369.0,96368.0,0.41227817]
[1746104766772,0.1609,96369.0,96368.0,0.49167817]
[1746104767071,0.16094,96369.0,96368.0,0.49167817]
[1746104767678,4e-05,96369.0,96368.0,0.49167817]
[1746104768271,0.02737914,96370.0,96369.0,0.2075044]
[1746104768471,0.0403,96373.0,96370.0,0.0518754]
[1746104768674,0.0403,96373.0,96372.0,0.207498]
[1746104768871,0.0403,96373.0,96372.0,0.307498]
[1746104769071,0.0403,96373.0,96372.0,0.345398]
[1746104769267,0.1623,96373.0,96372.0,0.345398]
[1746104769764,0.1623,96373.0,96372.0,0.58736204]
[1746104770164,4e-05,96373.0,96372.0,0.58736204]
[1746104770971,0.0015,96375.0,96374.0,0.2074937]
[1746104771367,0.0015,96375.0,96374.0,0.3074937]
[1746104771573,0.00154,96375.0,96374.0,0.41125558]
[1746104771770,0.0015,96375.0,96374.0,0.41125558]
[1746104771971,0.00154,96375.0,96374.0,0.41125558]
[1746104773271,0.00154,96375.0,96374.0,0.20376188]
[1746104773566,0.00154,96375.0,96372.0,0.2]
[1746104773769,0.0772,96374.0,96373.0,0.2074958]
[1746104773966,0.0772,96374.0,96373.0,0.34825768]
[1746104774176,0.1992,96374.0,96373.0,0.34825768]
[1746104780378,0.0772,96374.0,96373.0,0.34825768]
[1746104780776,0.0772,96374.0,96373.0,0.14076188]
[1746104780970,0.0772,96374.0,96373.0,0.34825768]
[1746104781171,0.1992,96374.0,96373.0,0.34825768]
[1746104782173,0.0772,96374.0,96373.0,0.34825768]
[1746104783082,0.1992,96374.0,96373.0,0.34825768]
[1746104784176,0.0772,96374.0,96373.0,0.34825768]
[1746104785284,0.1992,96374.0,96373.0,0.34825768]
[1746104787180,0.18623939,96374.0,96373.0,0.34825768]
[1746104788086,0.06423939,96374.0,96373.0,0.34825768]
[1746104788982,0.06423939,96374.0,96373.0,0.38585768]
[1746104789182,0.00154,96375.0,96374.0,0.2074937]
[1746104789481,0.0015,96375.0,96374.0,0.3855937]
[1746104789786,0.00154,96375.0,96374.0,0.48935558]
[1746104797180,4e-05,96375.0,96374.0,0.48935558]
[1746104797379,0.02558035,96380.0,96379.0,0.2074829]
[1746104797580,0.02558035,96380.0,96379.0,0.3074829]
[1746104798078,0.14758035,96380.0,96379.0,0.3074829]
[1746104798282,0.14758035,96380.0,96379.0,0.1]
[1746104798484,0.14758035,96380.0,96378.0,0.2402]
[1746104798688,0.0396,96379.0,96378.0,0.347685]
[1746104798887,0.0396,96379.0,96378.0,0.1402]
[1746104799083,0.1616,96379.0,96378.0,0.347685]
[1746104799281,0.1616,96379.0,96378.0,0.4514415]
[1746104801183,0.1616,96379.0,96378.0,0.2439565]
[1746104801378,0.1616,96379.0,96378.0,0.4514415]
[1746104803091,0.0396,96379.0,96378.0,0.4514415]
[1746104807695,0.02664007,96379.0,96378.0,0.2439565]
[1746104808195,0.02664007,96379.0,96378.0,0.4514415]
[1746104814892,0.02664007,96379.0,96378.0,0.1]
[1746104815091,0.14864007,96379.0,96378.0,0.1]
[1746104815298,0.14864007,96379.0,96378.0,0.307485]
[1746104815495,0.14864007,96379.0,96378.0,0.1]
[1746104816400,0.14864007,96379.0,96378.0,0.1401]
[1746104816988,0.14864007,96379.0,96378.0,0.347585]
[1746104817399,0.14864007,96379.0,96378.0,0.45134258]
[1746104817794,0.13568001,96379.0,96378.0,0.45134258]
[1746104818011,0.13568001,96379.0,96378.0,0.24385758]
[1746104818306,0.01368001,96379.0,96378.0,0.24385758]
[1746104818604,0.01372001,96379.0,96378.0,0.24385758]
[1746104819404,0.01372001,96379.0,96378.0,0.45134258]
[1746104819607,0.01372001,96379.0,96378.0,0.24385758]
[1746104819904,0.01372001,96379.0,96378.0,0.45134258]
[1746104821502,4e-05,96379.0,96378.0,0.45134258]
[1746104824208,0.03974,96379.0,96378.0,0.45134258]
[1746104824605,0.03974,96379.0,96378.0,0.24385758]
[1746104824802,0.03974,96379.0,96378.0,0.1]
[1746104825310,0.16174,96379.0,96378.0,0.1]
[1746104826504,0.16174,96379.0,96378.0,0.1377]
[1746104829114,0.16174,96379.0,96378.0,0.1774]
[1746104830211,0.03974,96379.0,96378.0,0.1774]
[1746104830706,0.07744,96379.0,96378.0,0.1774]
[1746104831217,0.19944,96379.0,96378.0,0.1774]
[1746104832119,0.07744,96379.0,96378.0,0.384885]
[1746104832311,0.0377,96379.0,96378.0,0.384885]
[1746104833914,0.0377,96379.0,96378.0,0.48864258]
[1746104834717,0.03774,96379.0,96378.0,0.48864258]
[1746104834917,0.0377,96379.0,96378.0,0.48864258]
[1746104835418,0.03774,96379.0,96378.0,0.48864258]
[1746104842526,0.02478022,96379.0,96378.0,0.48864258]
[1746104850334,0.38558022,96379.0,96364.0,0.05368426]
[1746104850528,0.3608,96371.0,96370.0,0.3455023]
[1746104850729,0.3608,96371.0,96370.0,0.3824023]
[1746104850929,0.35561643,96371.0,96370.0,0.39016521]
[1746104851128,0.35561643,96371.0,96370.0,0.71592709]
[1746104851332,0.35043286,96371.0,96370.0,0.71592709]
[1746104851733,0.34524929,96371.0,96370.0,0.71592709]
[1746104852138,0.34006572,96371.0,96370.0,0.59392709]
[1746104852542,0.33488215,96371.0,96370.0,0.59392709]
[1746104852731,0.33492215,96371.0,96370.0,0.59392709]
[1746104854439,0.32973835,96371.0,96370.0,0.59392709]
[1746104854843,0.32451455,96371.0,96370.0,0.59392709]
[1746104855037,0.32455455,96371.0,96370.0,0.59392709]
[1746104855243,0.31937075,96371.0,96370.0,0.71592709]
[1746104855645,0.31418695,96371.0,96370.0,0.71592709]
[1746104856039,0.30900315,96371.0,96370.0,0.71592709]
[1746104856242,0.30900315,96371.0,96370.0,0.59392709]
[1746104856442,0.30381935,96371.0,96370.0,0.59392709]
[1746104856638,4e-05,96371.0,96370.0,0.59392709]
[1746104862537,4e-05,96371.0,96370.0,0.58616418]
[1746104864145,0.3608,96399.0,96370.0,0.73242988]
[1746104864449,0.46072709,96400.0,96399.0,0.2074398]
[1746104864642,0.46072709,96400.0,96399.0,0.3074398]
[1746104865343,0.46076709,96400.0,96399.0,0.3835398]
[1746104866038,0.46076709,96400.0,96399.0,0.40705292]
[1746104868948,0.09996709,96400.0,96399.0,0.51078789]
[1746104869144,0.09996709,96400.0,96399.0,0.61078789]
[1746104869337,0.09992709,96400.0,96399.0,0.61078789]
[1746104869541,0.09996709,96400.0,96399.0,0.61078789]
[1746104870559,0.08701013,96400.0,96399.0,0.61078789]
[1746104871454,0.08701013,96400.0,96399.0,0.40334809]
[1746104871654,0.08701013,96400.0,96399.0,0.61078789]
[1746104874446,0.44781013,96400.0,96399.0,0.26241312]
[1746104875352,0.56981013,96400.0,96399.0,0.46985292]
[1746104875551,0.56981013,96400.0,96399.0,0.26241312]
[1746104878257,0.56981013,96400.0,96399.0,0.30071312]
[1746104878456,0.56981013,96400.0,96399.0,0.50815292]
[1746104878851,0.56981013,96400.0,96399.0,0.12351312]
[1746104879052,0.56981013,96400.0,96399.0,0.02351312]
[1746104879358,0.56981013,96400.0,96392.0,0.2074548]
[1746104879659,0.1137,96399.0,96394.0,0.1]
[1746104879849,0.1137,96399.0,96395.0,0.038]
[1746104880048,0.1137,96399.0,96395.0,0.138]
[1746104880249,0.2357,96399.0,96395.0,0.138]
[1746104880755,0.2357,96399.0,96395.0,0.16190634]
[1746104881056,0.2357,96399.0,96395.0,0.36935374]
[1746104882059,0.2357,96399.0,96397.0,0.2074436]
[1746104882250,0.2357,96399.0,96398.0,0.0378]
[1746104882754,0.1978,96399.0,96398.0,0.245242]
[1746104883057,0.19784,96399.0,96398.0,0.245242]
[1746104883955,0.1978,96399.0,96398.0,0.245242]
[1746104884155,0.19784,96399.0,96398.0,0.245242]
[1746104885262,0.12204,96399.0,96398.0,0.38597805]
[1746104885553,0.122,96399.0,96398.0,0.38597805]
[1746104886153,0.08697013,96400.0,96399.0,0.2074398]
[1746104886457,0.08697013,96400.0,96399.0,0.2847398]
[1746104886659,0.12277013,96400.0,96399.0,0.2847398]
[1746104886858,0.12277013,96400.0,96399.0,0.38847585]
[1746104888856,0.16017013,96400.0,96399.0,0.38847585]
[1746104889054,0.16017013,96400.0,96399.0,0.0389]
[1746104889252,0.28217013,96400.0,96399.0,0.1389]
[1746104889559,0.28217013,96400.0,96399.0,0.0389]
[1746104889757,0.28217013,96400.0,96399.0,0.1389]
[1746104890159,0.28217013,96400.0,96399.0,0.0389]
[1746104890559,0.28217013,96400.0,96395.0,0.02390634]
[1746104890755,0.3608,96397.0,96370.0,0.05977124]
[1746104890959,0.3608,96397.0,96383.0,0.1]
[1746104890960,0.0518618,96396.0,96383.0,0.1]
[1746104891159,0.3608,96384.0,96383.0,0.1]
[1746104891763,0.3608,96384.0,96383.0,0.12390507]
[1746104892169,0.4828,96384.0,96383.0,0.12490507]
[1746104892552,0.4824,96384.0,96383.0,0.12490507]
[1746104894766,0.6898721,96384.0,96383.0,0.101]
[1746104895653,0.7663721,96384.0,96383.0,0.101]
[1746104896363,0.0518687,96383.0,96370.0,0.00789574]
[1746104896558,0.3608,96371.0,96370.0,0.1]
[1746104896759,0.3608,96371.0,96370.0,0.00761063]
[1746104897062,0.3608,96371.0,96367.0,0.2075087]
[1746104897261,0.113,96370.0,96367.0,0.2314668]
[1746104897566,0.113,96370.0,96368.0,0.0383]
[1746104897768,0.0346,96370.0,96368.0,0.04600626]
[1746104897967,0.122,96371.0,96370.0,0.2075023]
[1746104898156,0.3608,96372.0,96371.0,0.2075001]
[1746104898356,0.34783939,96372.0,96371.0,0.2075001]
[1746104898661,0.34787939,96372.0,96371.0,0.31126844]
[1746104900568,0.34787939,96372.0,96371.0,0.31326844]
[1746104901459,0.34787939,96372.0,96371.0,0.20576834]
[1746104902259,0.46987939,96372.0,96371.0,0.102]
[1746104904965,0.67733739,96372.0,96371.0,0.102]
[1746104905166,0.67737739,96372.0,96371.0,0.002]
[1746104905372,0.67737739,96372.0,96371.0,0.102]
[1746104906174,0.75167739,96372.0,96371.0,0.102]
[1746104907171,0.2075002,96371.0,96366.0,0.05662422]
[1746104907372,0.3608,96368.0,96366.0,0.05662422]
[1746104907671,0.0726,96367.0,96366.0,0.0358]
[1746104908167,0.1946,96367.0,96366.0,0.04347221]
[1746104908372,0.1946,96367.0,96366.0,0.06451354]
[1746104908576,0.1946,96367.0,96366.0,0.04347221]
[1746104908871,0.1946,96367.0,96366.0,0.00867221]
[1746104909462,0.4021087,96367.0,96366.0,0.00867221]
[1746104911177,0.1946,96367.0,96366.0,0.00867221]
[1746104911362,0.1946,96367.0,96366.0,0.04657221]
[1746104911563,0.2305,96367.0,96366.0,0.04657221]
[1746104912762,0.4380087,96367.0,96366.0,0.14657221]
[1746104912963,0.4380087,96367.0,96366.0,0.00867221]
[1746104913769,0.5417807,96367.0,96366.0,0.00867221]
[1746104914270,0.5417807,96367.0,96366.0,0.00767221]
[1746104914473,0.2075109,96366.0,96365.0,0.00103772]
[1746104914677,0.103772,96366.0,96365.0,0.00103772]
[1746104914977,0.178972,96366.0,96365.0,0.00892453]
[1746104915174,0.300972,96366.0,96365.0,0.00103772]
[1746104915368,0.4047109,96366.0,96365.0,0.00103772]
[1746104915766,0.1972,96366.0,96365.0,0.00103772]
[1746104915966,0.19724,96366.0,96365.0,0.00103772]
[1746104916574,0.19724,96366.0,96365.0,0.10103772]
[1746104917173,0.12204,96366.0,96365.0,0.31721977]
[1746104917365,0.122,96366.0,96365.0,0.31721977]
[1746104917566,0.12304,96366.0,96365.0,0.31721977]
[1746104917968,0.12304,96366.0,96365.0,0.39311977]
[1746104918569,0.12304,96366.0,96365.0,0.18560677]
[1746104919078,0.00104,96366.0,96365.0,0.18560677]
[1746104919282,0.00104,96366.0,96365.0,0.39311977]
[1746104919478,0.001,96366.0,96365.0,0.39311977]
[1746104919678,0.00104,96366.0,96365.0,0.49689134]
[1746104920580,0.001,96366.0,96365.0,0.49589134]
[1746104920785,0.00104,96366.0,96365.0,0.49689134]
[1746104920971,0.00104,96366.0,96365.0,0.28937834]
[1746104921672,0.36085401,96376.0,96365.0,0.29137834]
[1746104921875,0.36085401,96376.0,96368.0,0.2075056]
[1746104922070,0.36085401,96376.0,96369.0,0.0769]
[1746104922679,0.36085401,96376.0,96369.0,0.2844033]
[1746104923375,0.36085401,96376.0,96369.0,0.2864033]
[1746104924280,0.48285401,96376.0,96369.0,0.2864033]
[1746104924782,0.48285401,96376.0,96369.0,0.0789]
[1746104925282,0.36085401,96376.0,96369.0,0.0789]
[1746104925778,0.36085401,96376.0,96369.0,0.0799]
[1746104925980,0.36085401,96376.0,96375.0,0.1]
[1746104926178,0.48285401,96376.0,96375.0,0.1]
[1746104927379,0.48285401,96376.0,96375.0,0.101]
[1746104927887,0.48385401,96376.0,96375.0,0.101]
[1746104928486,0.48385401,96376.0,96375.0,0.3084915]
[1746104930080,0.48385401,96376.0,96375.0,0.101]
[1746104930280,0.48385401,96376.0,96375.0,0.175]
[1746104930486,0.48385401,96376.0,96375.0,0.3824915]
[1746104930687,0.48385401,96376.0,96375.0,0.175]
[1746104932778,0.69134341,96376.0,96375.0,0.075]
[1746104932978,0.69134341,96376.0,96375.0,0.0377]
[1746104933477,0.79510341,96376.0,96375.0,0.001]
[1746104933694,1.04510341,96376.0,96375.0,0.001]
[1746104934190,1.46380341,96376.0,96375.0,0.001]
[1746104934791,1.21380341,96376.0,96375.0,0.001]
[1746104936593,1.11004341,96376.0,96375.0,0.001]
[1746104936986,1.1099894,96376.0,96375.0,0.001]
[1746104937185,1.1100294,96376.0,96375.0,0.001]
[1746104939488,0.2075057,96369.0,96367.0,0.0369]
[1746104939690,0.2075044,96369.0,96368.0,0.073]
[1746104940291,0.2075044,96369.0,96368.0,0.173]
[1746104940798,0.2075044,96369.0,96368.0,0.174]
[1746104941189,0.0518734,96374.0,96368.0,0.174]
[1746104941394,0.2075044,96369.0,96368.0,0.174]
[1746104942801,0.2075044,96369.0,96368.0,0.173]
[1746104942991,0.2075044,96369.0,96368.0,0.174]
[1746104944300,0.3608,96375.0,96368.0,0.174]
[1746104944495,0.207499,96372.0,96368.0,0.174]
[1746104944701,0.396,96375.0,96368.0,0.3815062]
[1746104944897,0.3608,96375.0,96368.0,0.174]
[1746104945097,0.36084,96375.0,96369.0,0.2075026]
[1746104945399,0.3608,96375.0,96369.0,0.1]
[1746104945595,0.3608,96375.0,96374.0,0.1]
[1746104946295,0.36084,96375.0,96374.0,0.1]
[1746104947292,0.36084,96375.0,96368.0,0.073]
[1746104947293,0.2075007,96371.0,96368.0,0.073]
[1746104947500,0.2426023,96370.0,96369.0,0.1]
[1746104947802,0.2805023,96370.0,96369.0,0.0358]
[1746104948197,0.4025023,96370.0,96369.0,0.0358]
[1746104950101,0.38953913,96370.0,96369.0,0.0358]
[1746104950606,0.39053913,96370.0,96369.0,0.0358]
[1746104953604,0.18303683,96370.0,96369.0,0.0358]
[1746104953810,0.123,96370.0,96369.0,0.0358]
[1746104954903,0.123,96370.0,96369.0,0.3433044]
[1746104955306,0.3608,96375.0,96369.0,0.1358]
[1746104955501,0.36085401,96375.0,96371.0,0.2074989]
[1746104955806,0.3608,96375.0,96372.0,0.0735]
[1746104956009,0.36084,96375.0,96373.0,0.2074944]
[1746104956207,0.36084,96375.0,96372.0,0.0735]
[1746104956818,0.36084,96375.0,96374.0,0.2074937]
[1746104957104,0.36084,96375.0,96374.0,0.1]
[1746104958012,0.36184,96375.0,96374.0,0.1]
[1746104959816,0.001,96375.0,96374.0,0.41125558]
[1746104960202,4e-05,96375.0,96374.0,0.53325558]
[1746104961109,4e-05,96375.0,96374.0,0.41125558]
[1746104961412,0.06349401,96383.0,96382.0,0.2074764]
[1746104961618,0.06349401,96383.0,96382.0,0.3074764]
[1746104961914,0.06344,96383.0,96382.0,0.3074764]
[1746104962117,0.3608,96385.0,96384.0,0.2074721]
[1746104962714,0.4187,96388.0,96387.0,0.2074657]
[1746104962906,0.4187,96388.0,96387.0,0.3074657]
[1746104963102,4e-05,96388.0,96387.0,0.3074657]
[1746104963305,4e-05,96388.0,96387.0,0.41121359]
[1746104963506,0.3608,96393.0,96392.0,0.2074549]
[1746104963708,0.3608,96393.0,96392.0,0.3074549]
[1746104964514,0.3608,96393.0,96392.0,0.3818549]
[1746104964814,0.34984034,96393.0,96392.0,0.3818549]
[1746104965315,0.34984034,96393.0,96392.0,0.1744]
[1746104965905,0.34984034,96393.0,96392.0,0.3818549]
[1746104971014,0.34984034,96393.0,96392.0,0.1744]
[1746104971315,0.34984034,96393.0,96392.0,0.3818549]
[1746104975408,0.002,96393.0,96392.0,0.3818549]
[1746104976207,0.3608,96395.0,96394.0,0.2074506]
[1746104976616,0.36084,96395.0,96394.0,0.2074506]
[1746104977216,0.36284,96395.0,96394.0,0.2074506]
[1746104977616,0.36284,96395.0,96392.0,0.2818538]
[1746104977816,0.36284,96395.0,96394.0,0.2074506]
[1746104978215,0.36284,96395.0,96394.0,0.0716]
[1746104978522,0.36284,96395.0,96394.0,0.1716]
[1746104978920,0.36084,96395.0,96394.0,0.3790506]
[1746104979120,0.36084,96395.0,96394.0,0.1716]
[1746104980120,0.36084,96395.0,96394.0,0.3790506]
[1746104980328,0.36084,96395.0,96394.0,0.3976172]
[1746104982028,4e-05,96395.0,96394.0,0.3976172]
[1746104982230,0.08697013,96400.0,96399.0,0.2074398]
[1746104982430,0.08697013,96400.0,96399.0,0.3074398]
[1746104982621,0.08701013,96400.0,96399.0,0.3074398]
[1746104983020,0.08701013,96400.0,96399.0,0.3809398]
[1746104984022,0.08701013,96400.0,96399.0,0.1735]
[1746104984234,0.08701013,96400.0,96399.0,0.0376]
[1746104984530,0.07405292,96400.0,96399.0,0.1376]
[1746104985036,0.07405292,96400.0,96399.0,0.0376]
[1746104985231,0.19605292,96400.0,96399.0,0.0376]
[1746104985431,0.19605292,96400.0,96399.0,0.1376]
[1746104985625,0.19605292,96400.0,96399.0,0.0376]
[1746104985825,0.19605292,96400.0,96399.0,0.1376]
[1746104990437,0.19605292,96400.0,96399.0,0.0376]
[1746104990735,0.19605292,96400.0,96398.0,0.1]
[1746104991038,0.1128,96399.0,96398.0,0.1]
[1746104999736,0.1128,96399.0,96394.0,0.22047174]
[1746104999937,0.1128,96399.0,96395.0,0.1]
[1746105000847,0.1128,96399.0,96395.0,0.3074484]
[1746105001044,5.401e-05,96406.0,96397.0,0.4608]
[1746105001242,0.35243119,96419.0,96418.0,0.207399]
[1746105001442,0.34724839,96419.0,96418.0,0.1]
[1746105001746,0.34728839,96419.0,96418.0,0.1]
[1746105001948,0.34724839,96419.0,96418.0,0.1]
[1746105002255,0.34728839,96419.0,96418.0,0.1]
[1746105002460,0.3343338,96419.0,96418.0,0.1]
[1746105003151,4e-05,96419.0,96418.0,0.1]
[1746105004557,0.3608,96420.0,96418.0,0.1]
[1746105004957,0.3608,96420.0,96419.0,0.0371]
[1746105005254,0.3608,96420.0,96419.0,0.04488586]
[1746105006554,0.3608,96420.0,96419.0,0.08328586]
[1746105009042,0.3608,96420.0,96419.0,0.29068266]
[1746105009248,0.3608,96420.0,96419.0,0.08328586]
[1746105009447,0.3608,96420.0,96419.0,0.29068266]
[1746105011046,0.3608,96420.0,96419.0,0.08328586]
[1746105011457,0.3608,96420.0,96419.0,0.29068266]
[1746105012658,0.34784562,96420.0,96419.0,0.29068266]
[1746105014053,0.3608,96421.0,96419.0,0.29068266]
[1746105014647,0.3608,96421.0,96419.0,0.08328586]
[1746105014963,0.2073947,96420.0,96419.0,0.04618586]
[1746105015259,0.0762,96420.0,96419.0,0.04618586]
[1746105015457,0.0762,96420.0,96419.0,0.14618586]
[1746105017062,0.0376,96420.0,96419.0,0.14618586]
[1746105022762,0.076,96420.0,96419.0,0.14618586]
[1746105022961,0.1153,96420.0,96419.0,0.14618586]
[1746105025064,0.076,96420.0,96419.0,0.14618586]
[1746105025667,0.076,96420.0,96419.0,0.04618586]
[1746105025858,0.076,96420.0,96419.0,0.14618586]
[1746105026064,0.076,96420.0,96419.0,0.04618586]
[1746105026452,0.2833947,96420.0,96419.0,0.00778586]
[1746105026658,0.2074076,96414.0,96413.0,0.038]
[1746105026858,0.5682076,96414.0,96413.0,0.038]
[1746105027451,0.6420076,96414.0,96413.0,0.04571546]
[1746105027657,0.6420076,96414.0,96413.0,0.00771546]
[1746105027854,0.6420076,96414.0,96396.0,0.2454455]
[1746105027855,0.60148,96414.0,96396.0,0.2454455]
[1746105028060,0.3608,96400.0,96396.0,0.25306517]
[1746105028255,0.0359,96399.0,96397.0,0.2074439]
[1746105028661,0.0359,96399.0,96398.0,0.243242]
[1746105028862,0.0359,96399.0,96398.0,0.0358]
[1746105029967,0.0359,96399.0,96398.0,0.0723]
[1746105030467,0.01180948,97666.0,96398.0,0.0723]
[1746105030468,0.4187,96414.0,96398.0,0.176036]
[1746105030654,0.4187,96414.0,96410.0,0.2592688]
[1746105030858,0.4187,96414.0,96411.0,0.1114]
[1746105031271,0.0378,96413.0,96411.0,0.1114]
[1746105032667,4e-05,96414.0,96413.0,0.2074097]
[1746105032868,4e-05,96414.0,96411.0,0.3188125]
[1746105033768,4e-05,96414.0,96412.0,0.2074112]
[1746105034065,4e-05,96414.0,96411.0,0.1114]
[1746105034456,4e-05,96414.0,96411.0,0.3188129]
[1746105034657,4e-05,96414.0,96412.0,0.2074111]
[1746105035268,4e-05,96414.0,96413.0,0.2830097]
[1746105035465,4e-05,96414.0,96413.0,0.0756]
[1746105036766,4e-05,96414.0,96413.0,0.0374]
[1746105037271,0.03564,96414.0,96413.0,0.0374]
[1746105038370,0.07464,96414.0,96413.0,0.0374]
[1746105038566,0.2820476,96414.0,96413.0,0.0374]